[Event "POL-chT 2nd League-4 2020"]
[Site "Poronin"]
[Date "2020.09.07"]
[Round "3.11"]
[White "Skowronski, Piotr"]
[Black "Kakowski, Wojciech"]
[Result "1-0"]
[ECO "A11"]
[WhiteElo "2001"]
[BlackElo "1409"]
[Annotator "ChessBase"]
[PlyCount "87"]
[EventDate "2020.09.05"]
[EventType "team-tourn"]
[EventCountry "POL"]
[SourceTitle "playchess.com"]
[Source "ChessBase"]
[SourceQuality "1"]
[TimeControl "40/5400+30:900+30"]

1. c4 {[%emt 0:00:00]} c6 {[%emt 0:00:00]} 2. d4 {[%emt 0:01:01]} d5 {[%emt 0:00:00]} 3. e3 {[%emt 0:00:40]} Nf6 {[%emt 0:00:23]} 4. Nc3 {[%emt 0:00:47]} dxc4 {[%emt 0:06:36]} 5. Bxc4 {[%emt 0:00:24]} b5 {[%emt 0:00:51]} 6. Bd3 {[%emt 0:00:54]} Bb7 {[%emt 0:01:39]} 7. Nf3 {[%emt 0:02:42]} Nbd7 {[%emt 0:04:17]} 8. O-O {[%emt 0:07:03]} e6 {[%emt 0:00:46]} 9. Re1 {[%emt 0:07:36]} Be7 {[%emt 0:01:50]} 10. a3 {[%emt 0:03:51]} O-O {[%emt 0:04:39]} 11. e4 {[%emt 0:01:09]} a5 {[%emt 0:14:13]} 12. e5 {[%emt 0:05:04]} Nd5 {[%emt 0:01:12]} 13. Ne4 {[%emt 0:06:59]} Qb6 {[%emt 0:04:13]} 14. Bg5 {[%emt 0:11:19]} Bxg5 {[%emt 0:03:39]} 15. Nexg5 {[%emt 0:09:26]} g6 {[%emt 0:07:21]} 16. Qd2 {[%emt 0:08:57]} c5 {[%emt 0:11:08]} 17. Re4 {[%emt 0:04:25]} h5 {[%emt 0:14:00]} 18. Rh4 {[%emt 0:03:37]} Kg7 {[%emt 0:02:57]} 19. g4 {[%emt 0:04:03]} Rh8 {[%emt 0:00:23]} 20. gxh5 {[%emt 0:00:15]} Rxh5 {[%emt 0:02:38]} 21. Rxh5 {[%emt 0:00:52]} gxh5 {[%emt 0:00:06]} 22. Kh1 {[%emt 0:07:32]} Ne7 {[%emt 0:03:14]} 23. Qf4 {[%emt 0:02:02]} Rf8 {[%emt 0:01:46]} 24. Nh7 {[%emt 0:01:43]} Ng6 {[%emt 0:02:52]} 25. Bxg6 {[%emt 0:00:40]} fxg6 {[%emt 0:00:08]} 26. Nxf8 {[%emt 0:00:09]} Nxf8 {[%emt 0:00:02]} 27. Kg1 {[%emt 0:02:02]} Qc6 {[%emt 0:00:57]} 28. Kg2 {[%emt 0:00:51]} Nh7 {[%emt 0:02:37]} 29. h4 {[%emt 0:01:44]} Kh8 {[%emt 0:04:48]} 30. Kg3 {[%emt 0:02:31]} cxd4 {[%emt 0:02:20]} 31. Rc1 {[%emt 0:00:43]} Qd5 {[%emt 0:01:18]} 32. Rc7 {[%emt 0:01:14]} g5 {[%emt 0:01:26]} 33. hxg5 {[%emt 0:00:21]} Qxf3+ {[%emt 0:00:44]} 34. Qxf3 {[%emt 0:00:09]} Bxf3 {[%emt 0:00:06]} 35. Kxf3 {[%emt 0:00:07]} Nxg5+ {[%emt 0:00:01]} 36. Kf4 {[%emt 0:00:22]} Nh3+ {[%emt 0:00:32]} 37. Kg3 {[%emt 0:00:09]} Ng1 {[%emt 0:00:19]} 38. Rd7 {[%emt 0:01:28]} h4+ {[%emt 0:00:28]} 39. Kxh4 {[%emt 0:00:33]} Nf3+ {[%emt 0:00:02]} 40. Kg3 {[%emt 0:00:00]} Nxe5 {[%emt 0:00:00]} 41. Rxd4 {[%emt 0:00:37]} Nc4 {[%emt 0:00:26]} 42. a4 {[%emt 0:01:50]} Nxb2 {[%emt 0:00:17]} 43. axb5 {[%emt 0:00:11]} e5 {[%emt 0:01:16]} 44. Rh4+ {[%emt 0:00:34]} 1-0

[Event "POL-chT 2nd League-4 2020"]
[Site "Poronin"]
[Date "2020.09.07"]
[Round "3.12"]
[White "Dabrowska, Aleksandra"]
[Black "Mackiewicz, Anna"]
[Result "0-1"]
[ECO "B00"]
[WhiteElo "1566"]
[BlackElo "1858"]
[Annotator "NA"]
[PlyCount "84"]
[EventDate "2020.09.05"]
[EventType "team-tourn"]
[EventCountry "POL"]
[SourceTitle "playchess.com"]
[Source "ChessBase"]
[SourceQuality "1"]
[TimeControl "40/5400+30:900+30"]

1. e4 {[%emt 0:00:00]} d6 {[%emt 0:01:48]} 2. Nc3 {[%emt 0:00:13]} g6 {[%emt 0:00:16]} 3. Nf3 {[%emt 0:01:33]} Bg7 {[%emt 0:00:08]} 4. d4 {[%emt 0:02:56]} e6 {[%emt 0:01:30]} 5. Be3 {[%emt 0:02:31]} Ne7 {[%emt 0:00:37]} 6. Qd2 {[%emt 0:02:29]} h6 {[%emt 0:05:39]} 7. g3 {[%emt 0:06:20]} Nd7 {[%emt 0:00:40]} 8. Bg2 {[%emt 0:00:44]} Nb6 {[%emt 0:06:16]} 9. Qe2 Bd7 10. Nd2 e5 11. dxe5 dxe5 12. Nb3 Be6 13. Nc5 Bc4 14. Qg4 Qd6 15. b3 Ba6 16. Nxa6 bxa6 17. O-O O-O 18. Qe2 Qb4 19. Nd1 a5 20. a3 Qd6 21. Qb5 Qc6 22. Qe2 Rad8 23. Nb2 f5 24. exf5 e4 25. c4 gxf5 26. f3 a4 27. Rab1 axb3 28. Nd1 Qxc4 29. Qxc4+ Nxc4 30. Rxb3 Nxe3 31. Nxe3 Rd3 32. Rxd3 exd3 33. Nc4 Rd8 34. Rd1 Rd4 35. Nd2 Nd5 36. Re1 Ra4 37. Nb1 c5 38. Bh3 Bd4+ 39. Kh1 Ne3 40. Bf1 c4 41. h4 Nxf1 42. Rxf1 c3 0-1

[Event "POL-chT 2nd League-4 2020"]
[Site "Poronin"]
[Date "2020.09.07"]
[Round "3.13"]
[White "Niekras, Dawid"]
[Black "Piekarski, Lukasz"]
[Result "1/2-1/2"]
[ECO "B09"]
[WhiteElo "2329"]
[BlackElo "1868"]
[Annotator "ChessBase"]
[PlyCount "114"]
[EventDate "2020.09.05"]
[EventType "team-tourn"]
[EventCountry "POL"]
[SourceTitle "playchess.com"]
[Source "ChessBase"]
[SourceQuality "1"]
[TimeControl "40/5400+30:900+30"]

1. e4 {[%emt 0:00:00]} d6 {[%emt 0:00:00]} 2. d4 {[%emt 0:00:00]} Nf6 {[%emt 0:00:00]} 3. Nc3 {[%emt 0:00:00]} g6 {[%emt 0:00:00]} 4. f4 {[%emt 0:00:00]} Bg7 {[%emt 0:00:00]} 5. Nf3 {[%emt 0:00:00]} c5 {[%emt 0:00:06]} 6. dxc5 {[%emt 0:00:02]} Qa5 {[%emt 0:00:03]} 7. Qd4 {[%emt 0:00:29]} O-O {[%emt 0:00:51]} 8. Bd2 {[%emt 0:01:29]} Nc6 {[%emt 0:11:58]} 9. Qc4 {[%emt 0:01:18]} Qxc5 {[%emt 0:31:38]} 10. Qxc5 dxc5 {[%emt 0:00:01]} 11. e5 {[%emt 0:00:30]} Ne8 {[%emt 0:00:11]} 12. Be3 {[%emt 0:12:40]} b6 {[%emt 0:05:18]} 13. O-O-O {[%emt 0:01:27]} Nc7 {[%emt 0:11:12]} 14. Bd3 {[%emt 0:32:34]} Bb7 {[%emt 0:08:37]} 15. Be4 {[%emt 0:01:37]} Rad8 {[%emt 0:01:38]} 16. g4 {[%emt 0:03:05]} f5 {[%emt 0:09:55]} 17. exf6 {[%emt 0:03:46]} exf6 {[%emt 0:00:41]} 18. f5 {[%emt 0:07:08]} Rfe8 {[%emt 0:12:01]} 19. Bf4 {[%emt 0:02:14]} Nb5 {[%emt 0:01:03]} 20. Rxd8 {[%emt 0:20:21]} Nxd8 {[%emt 0:00:12]} 21. Bxb7 Nxc3 {[%emt 0:00:41]} 22. Ba6 {[%emt 0:10:36]} Nxa2+ {[%emt 0:01:50]} 23. Kd2 {[%emt 0:00:33]} Re4 {[%emt 0:02:05]} 24. Bc7 {[%emt 0:01:20]} Nb4 {[%emt 0:00:25]} 25. Bb5 {[%emt 0:00:34]} Nf7 {[%emt 0:00:44]} 26. c3 {[%emt 0:00:22]} Re7 {[%emt 0:01:09]} 27. Bb8 {[%emt 0:00:44]} Bh6+ {[%emt 0:00:19]} 28. Kd1 {[%emt 0:00:25]} Nd5 {[%emt 0:00:40]} 29. Kc2 {[%emt 0:00:32]} Ne3+ {[%emt 0:00:25]} 30. Kb3 {[%emt 0:00:01]} a5 {[%emt 0:00:43]} 31. fxg6 {[%emt 0:01:03]} hxg6 {[%emt 0:00:01]} 32. h3 {[%emt 0:00:21]} Kf8 {[%emt 0:00:12]} 33. Nh4 {[%emt 0:00:42]} Kg7 {[%emt 0:00:34]} 34. Bd3 {[%emt 0:00:24]} c4+ {[%emt 0:00:15]} 35. Bxc4 {[%emt 0:00:02]} Nxc4 {[%emt 0:00:04]} 36. Kxc4 {[%emt 0:00:06]} f5 {[%emt 0:01:18]} 37. gxf5 {[%emt 0:01:26]} Re4+ {[%emt 0:00:07]} 38. Kb5 {[%emt 0:00:01]} Rxh4 {[%emt 0:00:13]} 39. fxg6 {[%emt 0:00:05]} Kxg6 {[%emt 0:00:45]} 40. Kxb6 {[%emt 0:00:00]} a4 {[%emt 0:00:00]} 41. Kb5 {[%emt 0:02:05]} Bf8 {[%emt 0:09:23]} 42. Ra1 {[%emt 0:03:06]} a3 {[%emt 0:02:54]} 43. b4 {[%emt 0:00:37]} Rxh3 {[%emt 0:00:39]} 44. Rxa3 {[%emt 0:00:02]} Kf5 {[%emt 0:00:52]} 45. Ra7 {[%emt 0:04:08]} Ke6 {[%emt 0:00:18]} 46. c4 {[%emt 0:00:41]} Nd8 {[%emt 0:01:28]} 47. c5 {[%emt 0:01:03]} Rb3 {[%emt 0:00:39]} 48. Ra6+ {[%emt 0:01:28]} Kd7 {[%emt 0:00:12]} 49. Bd6 {[%emt 0:02:54]} Bxd6 {[%emt 0:01:44]} 50. Rxd6+ {[%emt 0:00:03]} Kc7 {[%emt 0:00:15]} 51. Rh6 {[%emt 0:00:39]} Rb1 {[%emt 0:01:14]} 52. Rh7+ {[%emt 0:00:06]} Kb8 {[%emt 0:00:25]} 53. Rd7 {[%emt 0:02:14]} Kc8 {[%emt 0:00:11]} 54. Rd4 {[%emt 0:00:59]} Kc7 {[%emt 0:00:13]} 55. Rg4 {[%emt 0:00:55]} Rb2 {[%emt 0:00:12]} 56. Rg1 {[%emt 0:00:09]} Kb7 {[%emt 0:00:49]} 57. Rg7+ {[%emt 0:02:45]} Kb8 {[%emt 0:00:02]} 1/2-1/2

[Event "POL-chT 2nd League-4 2020"]
[Site "Poronin"]
[Date "2020.09.07"]
[Round "3.14"]
[White "Mrozowski, Patryk"]
[Black "Zakrzewski, Marek"]
[Result "1/2-1/2"]
[ECO "B47"]
[WhiteElo "2062"]
[BlackElo "2267"]
[Annotator "ChessBase"]
[PlyCount "80"]
[EventDate "2020.09.05"]
[EventType "team-tourn"]
[EventCountry "POL"]
[SourceTitle "playchess.com"]
[Source "ChessBase"]
[SourceQuality "1"]
[TimeControl "40/5400+30:900+30"]

1. e4 {[%emt 0:00:00]} c5 {[%emt 0:00:01]} 2. Nf3 {[%emt 0:00:00]} e6 {[%emt 0:00:09]} 3. d4 {[%emt 0:00:00]} cxd4 4. Nxd4 {[%emt 0:00:00]} Nc6 {[%emt 0:00:16]} 5. Nc3 {[%emt 0:00:00]} Qc7 {[%emt 0:00:06]} 6. g4 {[%emt 0:00:01]} a6 {[%emt 0:00:08]} 7. h4 {[%emt 0:00:02]} b5 {[%emt 0:01:16]} 8. Nxc6 {[%emt 0:00:07]} Qxc6 {[%emt 0:00:29]} 9. a3 {[%emt 0:00:04]} Bb7 {[%emt 0:01:00]} 10. Rh3 {[%emt 0:00:10]} Bc5 {[%emt 0:08:59]} 11. Bg2 {[%emt 0:00:08]} Ne7 {[%emt 0:01:09]} 12. h5 {[%emt 0:00:04]} Qb6 {[%emt 0:09:48]} 13. Be3 {[%emt 0:07:48]} Bxe3 {[%emt 0:05:03]} 14. Rxe3 {[%emt 0:02:01]} d5 {[%emt 0:05:36]} 15. exd5 {[%emt 0:01:13]} O-O-O {[%emt 0:00:25]} 16. Qe2 {[%emt 0:04:01]} Nxd5 {[%emt 0:02:34]} 17. Nxd5 {[%emt 0:01:20]} Bxd5 {[%emt 0:00:47]} 18. Bxd5 {[%emt 0:00:25]} Rxd5 {[%emt 0:00:10]} 19. Rd1 {[%emt 0:00:33]} Rhd8 {[%emt 0:02:11]} 20. Red3 {[%emt 0:02:28]} Qc5 {[%emt 0:09:01]} 21. Rxd5 {[%emt 0:02:05]} Rxd5 {[%emt 0:00:12]} 22. Rxd5 {[%emt 0:00:30]} Qxd5 {[%emt 0:00:11]} 23. Qe3 {[%emt 0:04:09]} Kb7 {[%emt 0:05:31]} 24. f3 {[%emt 0:02:47]} f5 {[%emt 0:07:03]} 25. Qc3 {[%emt 0:05:16]} Kb6 {[%emt 0:00:39]} 26. Qe3+ {[%emt 0:11:38]} Kc6 {[%emt 0:01:48]} 27. Qa7 {[%emt 0:14:20]} Qe5+ {[%emt 0:03:04]} 28. Kf1 {[%emt 0:05:15]} fxg4 {[%emt 0:02:07]} 29. Qxa6+ {[%emt 0:01:18]} Kd7 {[%emt 0:00:09]} 30. Qb7+ {[%emt 0:02:16]} Ke8 {[%emt 0:00:40]} 31. fxg4 {[%emt 0:09:22]} Qf4+ {[%emt 0:04:34]} 32. Ke2 {[%emt 0:01:16]} Qxg4+ {[%emt 0:00:08]} 33. Qf3 {[%emt 0:05:18]} Qc4+ {[%emt 0:04:41]} 34. Qd3 {[%emt 0:04:14]} Qc5 {[%emt 0:03:56]} 35. Qxh7 {[%emt 0:01:27]} Qe5+ {[%emt 0:00:07]} 36. Kd2 {[%emt 0:01:33]} Qxb2 {[%emt 0:00:19]} 37. Qe4 {[%emt 0:00:51]} Ke7 {[%emt 0:02:49]} 38. Qh4+ {[%emt 0:03:12]} Kd7 {[%emt 0:00:47]} 39. Qe4 {[%emt 0:00:45]} Ke7 {[%emt 0:02:37]} 40. Qh4+ {[%emt 0:00:00]} Kd7 {[%emt 0:00:00]} 1/2-1/2

[Event "POL-chT 2nd League-4 2020"]
[Site "Poronin"]
[Date "2020.09.07"]
[Round "3.15"]
[White "Bajerlein, Dawid"]
[Black "Pasionek, Ariel"]
[Result "1-0"]
[ECO "A53"]
[WhiteElo "2037"]
[BlackElo "1894"]
[Annotator "ChessBase"]
[PlyCount "79"]
[EventDate "2020.09.05"]
[EventType "team-tourn"]
[EventCountry "POL"]
[SourceTitle "playchess.com"]
[Source "ChessBase"]
[SourceQuality "1"]
[TimeControl "40/5400+30:900+30"]

1. d4 {[%emt 0:00:00]} Nf6 {[%emt 0:00:00]} 2. c4 {[%emt 0:00:00]} d6 {[%emt 0:00:14]} 3. Nf3 {[%emt 0:00:19]} g6 {[%emt 0:00:11]} 4. g3 {[%emt 0:00:10]} Bg7 {[%emt 0:00:17]} 5. Bg2 {[%emt 0:00:02]} O-O {[%emt 0:00:19]} 6. Nc3 {[%emt 0:00:02]} c6 {[%emt 0:00:17]} 7. O-O {[%emt 0:00:09]} Bg4 {[%emt 0:00:51]} 8. Ne1 {[%emt 0:08:48]} Qc8 {[%emt 0:18:37]} 9. f3 {[%emt 0:00:41]} Bh3 {[%emt 0:07:07]} 10. e4 {[%emt 0:00:02]} Bxg2 {[%emt 0:01:01]} 11. Kxg2 {[%emt 0:00:03]} e5 {[%emt 0:00:14]} 12. d5 {[%emt 0:01:04]} c5 {[%emt 0:02:35]} 13. Nd3 {[%emt 0:03:51]} Nbd7 {[%emt 0:21:20]} 14. Be3 {[%emt 0:06:00]} a6 {[%emt 0:06:17]} 15. a4 {[%emt 0:04:18]} h6 {[%emt 0:06:58]} 16. Qd2 {[%emt 0:18:41]} Kh7 {[%emt 0:03:36]} 17. Rae1 {[%emt 0:04:56]} Qc7 {[%emt 0:05:50]} 18. h3 {[%emt 0:13:49]} Rae8 {[%emt 0:04:58]} 19. Bg1 {[%emt 0:22:19]} Ng8 {[%emt 0:04:28]} 20. b3 {[%emt 0:03:30]} f5 {[%emt 0:04:11]} 21. f4 {[%emt 0:01:50]} Qa5 {[%emt 0:04:44]} 22. exf5 {[%emt 0:01:44]} Rxf5 {[%emt 0:00:33]} 23. Ne4 {[%emt 0:02:43]} Qxd2+ {[%emt 0:00:58]} 24. Nxd2 {[%emt 0:00:02]} Ref8 {[%emt 0:00:24]} 25. Ne4 {[%emt 0:01:46]} exf4 {[%emt 0:01:13]} 26. gxf4 {[%emt 0:00:43]} g5 {[%emt 0:02:00]} 27. Nxd6 {[%emt 0:00:35]} R5f6 {[%emt 0:00:37]} 28. Ne4 {[%emt 0:00:48]} Rf5 {[%emt 0:00:40]} 29. Nexc5 {[%emt 0:01:35]} Nxc5 {[%emt 0:00:55]} 30. Bxc5 {[%emt 0:01:51]} R8f7 {[%emt 0:00:02]} 31. Ne5 {[%emt 0:01:12]} Rc7 {[%emt 0:01:05]} 32. Bd6 {[%emt 0:00:11]} Rc8 {[%emt 0:00:17]} 33. Nd3 {[%emt 0:01:25]} Nf6 {[%emt 0:00:35]} 34. fxg5 {[%emt 0:00:39]} Rxg5+ {[%emt 0:00:01]} 35. Kh2 {[%emt 0:00:26]} Rg8 {[%emt 0:00:37]} 36. Be7 {[%emt 0:00:40]} Kg6 {[%emt 0:01:10]} 37. Rg1 {[%emt 0:00:58]} Kf7 {[%emt 0:00:20]} 38. Rxg5 {[%emt 0:00:21]} hxg5 {[%emt 0:00:02]} 39. d6 {[%emt 0:00:28]} Nd7 {[%emt 0:00:45]} 40. Bxg5 {[%emt 0:00:00]} 1-0

[Event "POL-chT 2nd League-4 2020"]
[Site "Poronin"]
[Date "2020.09.07"]
[Round "3.16"]
[White "Wojciechowski, Beniamin"]
[Black "Hemmerling, Jaroslaw"]
[Result "1-0"]
[ECO "C02"]
[WhiteElo "1814"]
[BlackElo "1938"]
[Annotator "ChessBase"]
[PlyCount "133"]
[EventDate "2020.09.05"]
[EventType "team-tourn"]
[EventCountry "POL"]
[SourceTitle "playchess.com"]
[Source "ChessBase"]
[SourceQuality "1"]
[TimeControl "40/5400+30:900+30"]

1. e4 {[%emt 0:00:00]} e6 {[%emt 0:00:00]} 2. d4 {[%emt 0:00:00]} d5 {[%emt 0:00:00]} 3. e5 {[%emt 0:00:37]} c5 {[%emt 0:00:00]} 4. f4 {[%emt 0:00:08]} Nc6 {[%emt 0:00:11]} 5. Nf3 {[%emt 0:00:07]} Nh6 {[%emt 0:00:08]} 6. Bd3 {[%emt 0:00:12]} Bd7 {[%emt 0:00:19]} 7. O-O {[%emt 0:00:54]} Qb6 {[%emt 0:00:23]} 8. a3 {[%emt 0:04:16]} a5 {[%emt 0:07:59]} 9. Re1 {[%emt 0:18:34]} Nxd4 {[%emt 0:18:41]} 10. Nxd4 {[%emt 0:01:47]} cxd4 {[%emt 0:01:35]} 11. Qe2 {[%emt 0:01:51]} Bc5 {[%emt 0:09:55]} 12. Nd2 {[%emt 0:04:38]} O-O {[%emt 0:31:26]} 13. Kh1 {[%emt 0:00:36]} f5 {[%emt 0:02:45]} 14. h3 {[%emt 0:13:01]} Rac8 {[%emt 0:06:10]} 15. b3 {[%emt 0:02:14]} Qd8 {[%emt 0:00:36]} 16. g3 {[%emt 0:01:06]} Qe7 {[%emt 0:05:14]} 17. Bb2 {[%emt 0:01:18]} Kh8 {[%emt 0:02:29]} 18. Nf3 {[%emt 0:01:00]} Rg8 {[%emt 0:01:34]} 19. Qd2 {[%emt 0:04:01]} b6 {[%emt 0:00:25]} 20. Qc1 {[%emt 0:04:18]} Nf7 {[%emt 0:02:42]} 21. h4 {[%emt 0:02:54]} Nh6 {[%emt 0:00:08]} 22. Bxd4 {[%emt 0:03:05]} Ng4 {[%emt 0:00:01]} 23. Kg2 {[%emt 0:02:59]} Bxd4 {[%emt 0:02:37]} 24. Nxd4 {[%emt 0:00:09]} Qc5 {[%emt 0:00:01]} 25. Qb2 {[%emt 0:00:56]} Rc7 {[%emt 0:01:52]} 26. Re2 {[%emt 0:06:02]} Rgc8 {[%emt 0:00:03]} 27. Ra2 {[%emt 0:01:37]} Kg8 {[%emt 0:00:55]} 28. b4 {[%emt 0:03:17]} Qe7 {[%emt 0:00:03]} 29. bxa5 {[%emt 0:01:16]} bxa5 {[%emt 0:00:02]} 30. Qb6 {[%emt 0:00:14]} Qc5 {[%emt 0:01:07]} 31. Qxc5 {[%emt 0:03:19]} Rxc5 {[%emt 0:00:03]} 32. Nb3 {[%emt 0:02:52]} R5c7 {[%emt 0:00:39]} 33. Nxa5 {[%emt 0:05:25]} Ra7 {[%emt 0:02:58]} 34. Nb3 {[%emt 0:00:24]} Rc3 {[%emt 0:00:02]} 35. Rb2 {[%emt 0:08:28]} Rxa3 {[%emt 0:00:15]} 36. Nd4 {[%emt 0:00:22]} Ra1 {[%emt 0:01:02]} 37. Rb7 {[%emt 0:01:13]} Bc8 {[%emt 0:01:09]} 38. Rb8 {[%emt 0:00:48]} Kf7 {[%emt 0:00:05]} 39. Nb5 {[%emt 0:00:24]} Rxd3 {[%emt 0:02:38]} 40. Nd6+ {[%emt 0:00:00]} Kg6 {[%emt 0:00:00]} 41. cxd3 {[%emt 0:02:03]} Ba6 {[%emt 0:05:46]} 42. Rd2 {[%emt 0:12:57]} Ne3+ {[%emt 0:01:41]} 43. Kf3 {[%emt 0:03:05]} Nf1 {[%emt 0:00:56]} 44. Rdb2 {[%emt 0:01:19]} Bxd3 {[%emt 0:00:20]} 45. R8b3 {[%emt 0:00:58]} Ba6 {[%emt 0:06:30]} 46. Kf2 {[%emt 0:00:11]} Nh2 {[%emt 0:00:36]} 47. Ke3 {[%emt 0:00:37]} Ng4+ {[%emt 0:03:05]} 48. Kd4 {[%emt 0:00:35]} Rd1+ {[%emt 0:01:15]} 49. Kc5 {[%emt 0:00:22]} d4 {[%emt 0:00:02]} 50. Nb5 {[%emt 0:00:45]} d3 {[%emt 0:00:15]} 51. Ra2 {[%emt 0:00:40]} d2 {[%emt 0:00:48]} 52. Nc3 {[%emt 0:00:21]} Rc1 {[%emt 0:00:57]} 53. Rxd2 {[%emt 0:00:09]} Ne3 {[%emt 0:00:24]} 54. Kb4 {[%emt 0:00:55]} Nf1 {[%emt 0:00:35]} 55. Rd6 {[%emt 0:00:27]} Bc8 {[%emt 0:00:31]} 56. Ne2 {[%emt 0:00:26]} Rc2 {[%emt 0:00:22]} 57. Nd4 {[%emt 0:00:07]} Rd2 {[%emt 0:00:36]} 58. Kc3 {[%emt 0:01:00]} Rg2 {[%emt 0:00:31]} 59. Nxe6 {[%emt 0:00:30]} Rxg3+ {[%emt 0:00:34]} 60. Kb2 {[%emt 0:00:11]} Rg2+ {[%emt 0:00:28]} 61. Kc1 {[%emt 0:00:22]} Kf7 {[%emt 0:00:35]} 62. Ng5+ {[%emt 0:00:52]} Ke7 {[%emt 0:00:01]} 63. Rc3 {[%emt 0:00:12]} h6 {[%emt 0:00:48]} 64. Rc7+ {[%emt 0:00:08]} Ke8 {[%emt 0:00:34]} 65. Rxc8+ {[%emt 0:00:06]} Ke7 {[%emt 0:00:10]} 66. Rc7+ {[%emt 0:00:05]} Ke8 {[%emt 0:00:01]} 67. Ne6 {[%emt 0:00:10]} 1-0

[Event "POL-chT 2nd League-4 2020"]
[Site "Poronin"]
[Date "2020.09.07"]
[Round "3.17"]
[White "Glatty, Zbigniew"]
[Black "Palacki, Rafal"]
[Result "1-0"]
[ECO "B90"]
[WhiteElo "1857"]
[BlackElo "1806"]
[Annotator "NA"]
[PlyCount "73"]
[EventDate "2020.09.05"]
[EventType "team-tourn"]
[EventCountry "POL"]
[SourceTitle "playchess.com"]
[Source "ChessBase"]
[SourceQuality "1"]
[TimeControl "40/5400+30:900+30"]

1. e4 {[%emt 0:00:00]} c5 {[%emt 0:00:00]} 2. Nf3 {[%emt 0:00:00]} d6 {[%emt 0:00:00]} 3. d4 {[%emt 0:00:00]} cxd4 {[%emt 0:00:02]} 4. Nxd4 {[%emt 0:00:00]} Nf6 {[%emt 0:00:06]} 5. Nc3 {[%emt 0:00:03]} a6 {[%emt 0:00:04]} 6. Be3 {[%emt 0:01:07]} e5 {[%emt 0:00:09]} 7. Nb3 {[%emt 0:01:04]} Be7 {[%emt 0:00:20]} 8. Be2 {[%emt 0:03:25]} Be6 {[%emt 0:00:19]} 9. Nd5 {[%emt 0:04:58]} Nbd7 {[%emt 0:01:19]} 10. f3 {[%emt 0:02:30]} h5 {[%emt 0:00:56]} 11. Qd2 {[%emt 0:05:19]} b5 {[%emt 0:02:21]} 12. a4 {[%emt 0:05:57]} Bxd5 {[%emt 0:14:19]} 13. exd5 {[%emt 0:00:13]} bxa4 {[%emt 0:01:42]} 14. Na5 {[%emt 0:07:41]} Nb6 {[%emt 0:18:02]} 15. c4 {[%emt 0:00:54]} Nfd7 {[%emt 0:00:55]} 16. Bd1 {[%emt 0:18:50]} Qc8 {[%emt 0:11:46]} 17. Bxb6 {[%emt 0:15:24]} Nxb6 {[%emt 0:00:16]} 18. Bxa4+ {[%emt 0:00:10]} Nxa4 {[%emt 0:05:17]} 19. Rxa4 {[%emt 0:00:16]} Qf5 {[%emt 0:01:26]} 20. O-O {[%emt 0:02:30]} Rh6 {[%emt 0:11:44]} 21. Nc6 {[%emt 0:04:20]} Bg5 {[%emt 0:04:03]} 22. Qe2 {[%emt 0:01:36]} Bf4 {[%emt 0:06:45]} 23. b4 {[%emt 0:06:37]} Qg5 {[%emt 0:01:22]} 24. Rfa1 {[%emt 0:15:00]} Qh4 {[%emt 0:03:50]} 25. h3 {[%emt 0:01:51]} Qg3 {[%emt 0:10:22]} 26. Rxa6 {[%emt 0:01:35]} Qh2+ {[%emt 0:03:03]} 27. Kf2 {[%emt 0:00:45]} Rxa6 {[%emt 0:00:02]} 28. Rxa6 {[%emt 0:00:05]} f5 {[%emt 0:00:20]} 29. Ra8+ {[%emt 0:01:12]} Kf7 {[%emt 0:00:03]} 30. Nd8+ {[%emt 0:00:11]} Kf6 {[%emt 0:00:41]} 31. Ne6 {[%emt 0:00:19]} Rg6 {[%emt 0:01:27]} 32. Nxf4 {[%emt 0:00:37]} exf4 {[%emt 0:00:04]} 33. Qe6+ {[%emt 0:00:48]} Kg5 {[%emt 0:00:05]} 34. Qe7+ {[%emt 0:00:10]} Rf6 {[%emt 0:00:10]} 35. Qxg7+ {[%emt 0:00:23]} Rg6 {[%emt 0:00:03]} 36. Qe7+ {[%emt 0:00:15]} Rf6 {[%emt 0:00:03]} 37. Rg8+ {[%emt 0:00:19]} 1-0